[Event "Titled Tuesday Blitz October 11 Early 2022"]
[White "Halkias, Stelios"]
[Black "Stribuk, Artiom"]
[WhiteFideId "4201809"]
[BlackFideId "13515659"]
[WhiteElo "2453"]
[BlackElo "2279"]
[Result "1/2-1/2"]
[Round "03"]
[TimeControl "180+1"]
[Date "2022.10.11"]
[WhiteClock "0:00:15"]
[BlackClock "0:00:09"]

1. Nf3 {[%clk 0:03:00]}  c5 {[%clk 0:02:56]} 2. c4 {[%clk 0:03:00]}  g6 {[%clk 0:02:55]} 3. d4 {[%clk 0:03:00]}  cxd4 {[%clk 0:02:54]} 4. Nxd4 {[%clk 0:03:00]}  Bg7 {[%clk 0:02:46]} 5. e4 {[%clk 0:03:00]}  Nc6 {[%clk 0:02:47]} 6. Be3 {[%clk 0:02:59]}  Nf6 {[%clk 0:02:46]} 7. Nc3 {[%clk 0:02:59]}  d6 {[%clk 0:02:34]} 8. Be2 {[%clk 0:02:59]}  O-O {[%clk 0:02:30]} 9. O-O {[%clk 0:02:57]}  Bd7 {[%clk 0:02:19]} 10. h3 {[%clk 0:02:56]}  Nxd4 {[%clk 0:02:15]} 11. Bxd4 {[%clk 0:02:56]}  a5 {[%clk 0:02:16]} 12. Qc2 {[%clk 0:02:51]}  a4 {[%clk 0:02:13]} 13. Rad1 {[%clk 0:02:50]}  Qa5 {[%clk 0:02:12]} 14. Rfe1 {[%clk 0:02:42]}  Be6 {[%clk 0:01:47]} 15. Bf1 {[%clk 0:02:38]}  Rfc8 {[%clk 0:01:39]} 16. Nd5 {[%clk 0:02:09]}  Bxd5 {[%clk 0:01:30]} 17. exd5 {[%clk 0:02:09]}  b5 {[%clk 0:01:23]} 18. Rxe7 {[%clk 0:01:51]}  Nxd5 {[%clk 0:00:57]} 19. Re4 {[%clk 0:01:33]}  Nb4 {[%clk 0:00:51]} 20. Qd2 {[%clk 0:01:33]}  bxc4 {[%clk 0:00:41]} 21. Bxg7 {[%clk 0:01:32]}  Kxg7 {[%clk 0:00:41]} 22. Rxc4 {[%clk 0:01:24]}  Rxc4 {[%clk 0:00:33]} 23. Bxc4 {[%clk 0:01:24]}  d5 {[%clk 0:00:28]} 24. Bxd5 {[%clk 0:01:01]}  Rd8 {[%clk 0:00:26]} 25. Qc3+ {[%clk 0:01:01]}  f6 {[%clk 0:00:18]} 26. Bf3 {[%clk 0:00:43]}  Rxd1+ {[%clk 0:00:18]} 27. Bxd1 {[%clk 0:00:43]}  Qd5 {[%clk 0:00:16]} 28. Bxa4 {[%clk 0:00:38]}  Nxa2 {[%clk 0:00:13]} 29. Qc7+ {[%clk 0:00:37]}  Kh6 {[%clk 0:00:13]} 30. Qf4+ {[%clk 0:00:37]}  Kg7 {[%clk 0:00:13]} 31. Qc7+ {[%clk 0:00:30]}  Kh6 {[%clk 0:00:13]} 32. Qb8 {[%clk 0:00:30]}  Qc5 {[%clk 0:00:11]} 33. Qf4+ {[%clk 0:00:22]}  Kg7 {[%clk 0:00:11]} 34. Bb3 {[%clk 0:00:22]}  Nb4 {[%clk 0:00:10]} 35. Qc4 {[%clk 0:00:22]}  Qb6 {[%clk 0:00:09]} 36. Qf7+ {[%clk 0:00:21]}  Kh6 {[%clk 0:00:09]} 37. Qf8+ {[%clk 0:00:22]}  Kg5 {[%clk 0:00:08]} 38. h4+ {[%clk 0:00:20]}  Kf4 {[%clk 0:00:06]} 39. Qh6+ {[%clk 0:00:20]}  Ke5 {[%clk 0:00:06]} 40. Qd2 {[%clk 0:00:19]}  Qd4 {[%clk 0:00:06]} 41. Qe2+ {[%clk 0:00:20]}  Kd6 {[%clk 0:00:05]} 42. Qe6+ {[%clk 0:00:20]}  Kc7 {[%clk 0:00:06]} 43. Qe7+ {[%clk 0:00:20]}  Kb6 {[%clk 0:00:06]} 44. Qxh7 {[%clk 0:00:20]}  Nd3 {[%clk 0:00:06]} 45. Qxg6 {[%clk 0:00:16]}  Qxf2+ {[%clk 0:00:07]} 46. Kh2 {[%clk 0:00:16]}  Qxh4+ {[%clk 0:00:08]} 47. Kg1 {[%clk 0:00:16]}  Qf2+ {[%clk 0:00:08]} 48. Kh2 {[%clk 0:00:16]}  Qh4+ {[%clk 0:00:09]} 49. Kg1 {[%clk 0:00:16]}  Qd4+ {[%clk 0:00:09]} 50. Kh2 {[%clk 0:00:15]}  Qh4+ {[%clk 0:00:09]} 1/2-1/2


[Site "https://www.chess.com"]

[Event "Titled Tuesday Blitz October 11 Early 2022"]
[White "Harsh Suresh"]
[Black "Gulevich, Artem"]
[WhiteFideId "45018464"]
[BlackFideId "24119580"]
[WhiteElo "2180"]
[BlackElo "2218"]
[Result "1-0"]
[Round "03"]
[TimeControl "180+1"]
[Date "2022.10.12"]
[WhiteClock "0:01:04"]
[BlackClock "0:00:25"]

1. d4 {[%clk 0:02:59]}  d5 {[%clk 0:02:59]} 2. Nf3 {[%clk 0:02:59]}  Nf6 {[%clk 0:03:00]} 3. Bf4 {[%clk 0:02:58]}  e6 {[%clk 0:02:59]} 4. e3 {[%clk 0:02:53]}  Bd6 {[%clk 0:03:00]} 5. c3 {[%clk 0:02:52]}  c5 {[%clk 0:02:59]} 6. Bd3 {[%clk 0:02:51]}  Qc7 {[%clk 0:02:55]} 7. Bg3 {[%clk 0:02:47]}  Nbd7 {[%clk 0:02:54]} 8. Nbd2 {[%clk 0:02:45]}  e5 {[%clk 0:02:49]} 9. dxe5 {[%clk 0:02:45]}  Nxe5 {[%clk 0:02:50]} 10. Nxe5 {[%clk 0:02:42]}  Bxe5 {[%clk 0:02:50]} 11. Nf3 {[%clk 0:02:40]}  Bd6 {[%clk 0:02:46]} 12. O-O {[%clk 0:02:38]}  O-O {[%clk 0:02:44]} 13. Qc2 {[%clk 0:02:34]}  Bxg3 {[%clk 0:02:38]} 14. hxg3 {[%clk 0:02:34]}  Bg4 {[%clk 0:02:38]} 15. Nh2 {[%clk 0:02:31]}  Bh5 {[%clk 0:02:35]} 16. g4 {[%clk 0:02:21]}  Bg6 {[%clk 0:02:31]} 17. Rad1 {[%clk 0:02:21]}  Rad8 {[%clk 0:02:13]} 18. Qe2 {[%clk 0:02:00]}  Rfe8 {[%clk 0:02:06]} 19. Qf3 {[%clk 0:01:56]}  Ne4 {[%clk 0:01:50]} 20. Qf4 {[%clk 0:01:52]}  Qxf4 {[%clk 0:01:37]} 21. exf4 {[%clk 0:01:53]}  f6 {[%clk 0:01:35]} 22. f3 {[%clk 0:01:38]}  Ng3 {[%clk 0:01:06]} 23. Bxg6 {[%clk 0:01:32]}  Nxf1 {[%clk 0:00:38]} 24. Bxe8 {[%clk 0:01:27]}  Ne3 {[%clk 0:00:38]} 25. Ba4 {[%clk 0:01:13]}  b5 {[%clk 0:00:25]} 26. Rd3 {[%clk 0:01:04]} 1-0


[Site "https://www.chess.com"]

[Event "Titled Tuesday Blitz October 11 Early 2022"]
[White "Harsha Bharathakoti"]
[Black "Seo, Jung Min"]
[WhiteFideId "5078776"]
[BlackFideId "1734687"]
[WhiteElo "2523"]
[BlackElo "2455"]
[Result "1-0"]
[Round "03"]
[TimeControl "180+1"]
[Date "2022.10.11"]
[WhiteClock "0:00:45"]
[BlackClock "0:01:31"]

1. e4 {[%clk 0:03:00]}  Nc6 {[%clk 0:03:00]} 2. Nf3 {[%clk 0:02:59]}  d5 {[%clk 0:02:59]} 3. Nc3 {[%clk 0:02:53]}  d4 {[%clk 0:02:55]} 4. Ne2 {[%clk 0:02:53]}  e5 {[%clk 0:02:55]} 5. Ng3 {[%clk 0:02:51]}  Bd6 {[%clk 0:02:50]} 6. Bb5 {[%clk 0:02:50]}  Ne7 {[%clk 0:02:50]} 7. d3 {[%clk 0:02:50]}  O-O {[%clk 0:02:50]} 8. c3 {[%clk 0:02:47]}  a6 {[%clk 0:02:49]} 9. Ba4 {[%clk 0:02:47]}  b5 {[%clk 0:02:47]} 10. Bc2 {[%clk 0:02:46]}  dxc3 {[%clk 0:02:44]} 11. bxc3 {[%clk 0:02:46]}  b4 {[%clk 0:02:44]} 12. Bd2 {[%clk 0:02:47]}  a5 {[%clk 0:02:43]} 13. h3 {[%clk 0:02:45]}  Bc5 {[%clk 0:02:38]} 14. O-O {[%clk 0:02:44]}  Ba6 {[%clk 0:02:38]} 15. Qe2 {[%clk 0:02:40]}  Qd7 {[%clk 0:02:36]} 16. Rfd1 {[%clk 0:02:40]}  Rad8 {[%clk 0:02:36]} 17. Be1 {[%clk 0:02:40]}  Ng6 {[%clk 0:02:27]} 18. cxb4 {[%clk 0:02:18]}  axb4 {[%clk 0:02:25]} 19. Ba4 {[%clk 0:02:14]}  Qd6 {[%clk 0:02:08]} 20. Nf5 {[%clk 0:02:11]}  Qf6 {[%clk 0:02:08]} 21. Qc2 {[%clk 0:02:05]}  Nd4 {[%clk 0:02:01]} 22. Qxc5 {[%clk 0:01:08]}  Nxf3+ {[%clk 0:02:00]} 23. gxf3 {[%clk 0:01:09]}  Nf4 {[%clk 0:01:58]} 24. Bd2 {[%clk 0:01:09]}  Nxh3+ {[%clk 0:01:41]} 25. Kg2 {[%clk 0:01:08]}  Rxd3 {[%clk 0:01:40]} 26. Kxh3 {[%clk 0:00:53]}  Rxf3+ {[%clk 0:01:36]} 27. Kg2 {[%clk 0:00:53]}  Be2 {[%clk 0:01:32]} 28. Qxf8+ {[%clk 0:00:44]}  Kxf8 {[%clk 0:01:31]} 29. Bxb4+ {[%clk 0:00:45]}  Kg8 {[%clk 0:01:31]} 30. Ne7+ {[%clk 0:00:45]} 1-0


[Site "https://www.chess.com"]

[Event "Titled Tuesday Blitz October 11 Early 2022"]
[White "Ilkhomi, Jaloliddin"]
[Black "Hardaway, Brewington"]
[WhiteFideId "14700948"]
[BlackFideId "30941849"]
[WhiteElo "2045"]
[BlackElo "2159"]
[Result "0-1"]
[Round "03"]
[TimeControl "180+1"]
[Date "2022.10.12"]
[WhiteClock "0:00:02"]
[BlackClock "0:00:48"]

1. d4 {[%clk 0:02:58]}  Nf6 {[%clk 0:03:00]} 2. Nf3 {[%clk 0:02:56]}  e6 {[%clk 0:03:00]} 3. Bf4 {[%clk 0:02:55]}  d5 {[%clk 0:03:00]} 4. e3 {[%clk 0:02:55]}  c5 {[%clk 0:03:00]} 5. Nbd2 {[%clk 0:02:56]}  Bd6 {[%clk 0:02:55]} 6. Bg3 {[%clk 0:02:55]}  Qc7 {[%clk 0:02:55]} 7. c3 {[%clk 0:02:55]}  Nbd7 {[%clk 0:02:55]} 8. Bd3 {[%clk 0:02:52]}  O-O {[%clk 0:02:55]} 9. O-O {[%clk 0:02:50]}  e5 {[%clk 0:02:52]} 10. dxe5 {[%clk 0:02:51]}  Nxe5 {[%clk 0:02:53]} 11. Nxe5 {[%clk 0:02:52]}  Bxe5 {[%clk 0:02:54]} 12. Bxe5 {[%clk 0:02:44]}  Qxe5 {[%clk 0:02:54]} 13. Qe2 {[%clk 0:02:39]}  b6 {[%clk 0:02:54]} 14. Rae1 {[%clk 0:02:36]}  Bb7 {[%clk 0:02:53]} 15. e4 {[%clk 0:02:27]}  Rfe8 {[%clk 0:02:53]} 16. f4 {[%clk 0:02:23]}  Qh5 {[%clk 0:02:46]} 17. Qxh5 {[%clk 0:01:50]}  Nxh5 {[%clk 0:02:47]} 18. e5 {[%clk 0:01:51]}  g6 {[%clk 0:02:43]} 19. g4 {[%clk 0:01:49]}  Ng7 {[%clk 0:02:43]} 20. f5 {[%clk 0:01:50]}  Rad8 {[%clk 0:02:39]} 21. e6 {[%clk 0:01:44]}  gxf5 {[%clk 0:02:38]} 22. gxf5 {[%clk 0:01:16]}  fxe6 {[%clk 0:02:34]} 23. f6 {[%clk 0:01:16]}  Nf5 {[%clk 0:02:32]} 24. Bxf5 {[%clk 0:01:14]}  exf5 {[%clk 0:02:33]} 25. Rxe8+ {[%clk 0:01:13]}  Rxe8 {[%clk 0:02:33]} 26. Rxf5 {[%clk 0:01:14]}  Kf7 {[%clk 0:02:32]} 27. Nf3 {[%clk 0:01:12]}  Kg6 {[%clk 0:02:21]} 28. Nh4+ {[%clk 0:01:05]}  Kf7 {[%clk 0:02:20]} 29. Nf3 {[%clk 0:01:05]}  Bc8 {[%clk 0:02:18]} 30. Ne5+ {[%clk 0:00:47]}  Ke6 {[%clk 0:02:13]} 31. f7 {[%clk 0:00:48]}  Rf8 {[%clk 0:02:13]} 32. Rg5 {[%clk 0:00:46]}  Kf6 {[%clk 0:02:07]} 33. Rg8 {[%clk 0:00:40]}  Ke7 {[%clk 0:02:04]} 34. Kf2 {[%clk 0:00:15]}  Be6 {[%clk 0:02:03]} 35. Kf3 {[%clk 0:00:12]}  Rxg8 {[%clk 0:02:02]} 36. fxg8=Q {[%clk 0:00:11]}  Bxg8 {[%clk 0:02:03]} 37. Nc6+ {[%clk 0:00:12]}  Kf6 {[%clk 0:01:58]} 38. Nxa7 {[%clk 0:00:13]}  Be6 {[%clk 0:01:49]} 39. Nb5 {[%clk 0:00:08]}  Bd7 {[%clk 0:01:48]} 40. Na3 {[%clk 0:00:09]}  Ke5 {[%clk 0:01:48]} 41. Nc2 {[%clk 0:00:10]}  d4 {[%clk 0:01:46]} 42. cxd4+ {[%clk 0:00:09]}  cxd4 {[%clk 0:01:47]} 43. Ke2 {[%clk 0:00:09]}  Ke4 {[%clk 0:01:44]} 44. Kd2 {[%clk 0:00:09]}  Bb5 {[%clk 0:01:36]} 45. b3 {[%clk 0:00:08]}  h5 {[%clk 0:01:35]} 46. a4 {[%clk 0:00:08]}  Bf1 {[%clk 0:01:33]} 47. b4 {[%clk 0:00:08]}  h4 {[%clk 0:01:26]} 48. a5 {[%clk 0:00:07]}  bxa5 {[%clk 0:01:10]} 49. bxa5 {[%clk 0:00:08]}  Bb5 {[%clk 0:01:07]} 50. Na3 {[%clk 0:00:08]}  Ba6 {[%clk 0:01:07]} 51. Nc2 {[%clk 0:00:07]}  h3 {[%clk 0:01:02]} 52. Nb4 {[%clk 0:00:06]}  Bb5 {[%clk 0:01:01]} 53. Nc2 {[%clk 0:00:06]}  d3 {[%clk 0:00:56]} 54. Ne1 {[%clk 0:00:06]}  Ba6 {[%clk 0:00:49]} 55. Kc1 {[%clk 0:00:01]}  Ke3 {[%clk 0:00:49]} 56. Kd1 {[%clk 0:00:02]}  Bb5 {[%clk 0:00:47]} 57. Kc1 {[%clk 0:00:02]}  d2+ {[%clk 0:00:47]} 58. Kd1 {[%clk 0:00:03]}  Be2+ {[%clk 0:00:47]} 59. Kc2 {[%clk 0:00:02]}  d1=Q+ {[%clk 0:00:48]} 0-1


[Site "https://www.chess.com"]

[Event "Titled Tuesday Blitz October 11 Early 2022"]
[White "Indjic, Aleksandar"]
[Black "Kouskoutis, Georgios-Alexandros"]
[WhiteFideId "911925"]
[BlackFideId "4234049"]
[WhiteElo "2592"]
[BlackElo "2187"]
[Result "1-0"]
[Round "03"]
[TimeControl "180+1"]
[Date "2022.10.12"]
[WhiteClock "0:00:44"]
[BlackClock "0:00:02"]

1. c4 {[%clk 0:03:00]}  Nf6 {[%clk 0:02:59]} 2. Nc3 {[%clk 0:02:59]}  d5 {[%clk 0:02:49]} 3. cxd5 {[%clk 0:02:58]}  Nxd5 {[%clk 0:02:50]} 4. Nf3 {[%clk 0:02:57]}  g6 {[%clk 0:02:48]} 5. h4 {[%clk 0:02:57]}  h5 {[%clk 0:02:29]} 6. e4 {[%clk 0:02:57]}  Nb6 {[%clk 0:02:21]} 7. d4 {[%clk 0:02:56]}  Bg4 {[%clk 0:02:14]} 8. Be3 {[%clk 0:02:53]}  Bg7 {[%clk 0:02:12]} 9. a4 {[%clk 0:02:40]}  a5 {[%clk 0:01:54]} 10. Bb5+ {[%clk 0:02:38]}  c6 {[%clk 0:01:51]} 11. Be2 {[%clk 0:02:37]}  Na6 {[%clk 0:01:48]} 12. Ng5 {[%clk 0:01:44]}  Bxe2 {[%clk 0:01:39]} 13. Nxe2 {[%clk 0:01:44]}  Nb4 {[%clk 0:01:22]} 14. Qb3 {[%clk 0:01:40]}  e6 {[%clk 0:01:12]} 15. f3 {[%clk 0:01:30]}  Nd7 {[%clk 0:00:37]} 16. Rd1 {[%clk 0:01:28]}  Qe7 {[%clk 0:00:35]} 17. Kf2 {[%clk 0:01:26]}  Bf6 {[%clk 0:00:22]} 18. e5 {[%clk 0:01:23]}  Bg7 {[%clk 0:00:20]} 19. Ng3 {[%clk 0:01:19]}  Nb6 {[%clk 0:00:09]} 20. N5e4 {[%clk 0:01:13]}  Rd8 {[%clk 0:00:04]} 21. Bg5 {[%clk 0:01:13]}  Qc7 {[%clk 0:00:03]} 22. Bxd8 {[%clk 0:01:12]}  Qxd8 {[%clk 0:00:03]} 23. Nd6+ {[%clk 0:01:12]}  Ke7 {[%clk 0:00:04]} 24. Nge4 {[%clk 0:01:08]}  N6d5 {[%clk 0:00:03]} 25. Nxb7 {[%clk 0:01:05]}  Qb6 {[%clk 0:00:04]} 26. Nbd6 {[%clk 0:01:04]}  Rd8 {[%clk 0:00:03]} 27. g4 {[%clk 0:00:57]}  hxg4 {[%clk 0:00:02]} 28. h5 {[%clk 0:00:57]}  Nf4 {[%clk 0:00:02]} 29. Nc4 {[%clk 0:00:50]}  Qa7 {[%clk 0:00:02]} 30. Qe3 {[%clk 0:00:47]}  Nfd5 {[%clk 0:00:02]} 31. Qg5+ {[%clk 0:00:47]}  Ke8 {[%clk 0:00:02]} 32. Ncd6+ {[%clk 0:00:44]} 1-0


[Site "https://www.chess.com"]

[Event "Titled Tuesday Blitz October 11 Early 2022"]
[White "Johnson, Ben"]
[Black "Carbone, Diego"]
[WhiteFideId "2010917"]
[BlackFideId "3002179"]
[WhiteElo "2200"]
[BlackElo "2243"]
[Result "0-1"]
[Round "03"]
[TimeControl "180+1"]
[Date "2022.10.12"]
[WhiteClock "0:00:05"]
[BlackClock "0:00:33"]

1. Nf3 {[%clk 0:03:00]}  c5 {[%clk 0:02:59]} 2. c4 {[%clk 0:03:00]}  Nc6 {[%clk 0:02:58]} 3. Nc3 {[%clk 0:02:53]}  g6 {[%clk 0:02:58]} 4. e3 {[%clk 0:02:49]}  Nf6 {[%clk 0:02:58]} 5. d4 {[%clk 0:02:48]}  cxd4 {[%clk 0:02:59]} 6. exd4 {[%clk 0:02:49]}  d5 {[%clk 0:03:00]} 7. h3 {[%clk 0:02:39]}  Bg7 {[%clk 0:02:58]} 8. Bg5 {[%clk 0:02:21]}  Be6 {[%clk 0:02:41]} 9. c5 {[%clk 0:02:07]}  O-O {[%clk 0:02:38]} 10. Bd3 {[%clk 0:01:59]}  Ne4 {[%clk 0:02:24]} 11. Be3 {[%clk 0:01:46]}  Nxc5 {[%clk 0:02:11]} 12. dxc5 {[%clk 0:01:30]}  d4 {[%clk 0:02:12]} 13. Bd2 {[%clk 0:01:29]}  dxc3 {[%clk 0:02:10]} 14. Bxc3 {[%clk 0:01:30]}  Bxc3+ {[%clk 0:02:08]} 15. bxc3 {[%clk 0:01:31]}  Qa5 {[%clk 0:02:09]} 16. O-O {[%clk 0:01:25]}  Qxc5 {[%clk 0:02:09]} 17. Qa4 {[%clk 0:01:09]}  Rfd8 {[%clk 0:02:05]} 18. Be4 {[%clk 0:00:52]}  Bd5 {[%clk 0:02:00]} 19. Rac1 {[%clk 0:00:43]}  b5 {[%clk 0:01:58]} 20. Qc2 {[%clk 0:00:38]}  Na5 {[%clk 0:01:50]} 21. Rfe1 {[%clk 0:00:35]}  e6 {[%clk 0:01:33]} 22. Ng5 {[%clk 0:00:30]}  Rac8 {[%clk 0:01:30]} 23. Qe2 {[%clk 0:00:25]}  Nc4 {[%clk 0:01:21]} 24. h4 {[%clk 0:00:24]}  Bxe4 {[%clk 0:01:02]} 25. Nxe4 {[%clk 0:00:23]}  Qf5 {[%clk 0:01:02]} 26. h5 {[%clk 0:00:21]}  Kg7 {[%clk 0:00:57]} 27. g3 {[%clk 0:00:12]}  Qxh5 {[%clk 0:00:52]} 28. g4 {[%clk 0:00:06]}  Qe5 {[%clk 0:00:49]} 29. Qf3 {[%clk 0:00:04]}  h6 {[%clk 0:00:34]} 30. Ng3 {[%clk 0:00:04]}  Qf6 {[%clk 0:00:33]} 31. Qe3 {[%clk 0:00:05]}  Nxe3 {[%clk 0:00:33]} 0-1


[Site "https://www.chess.com"]

[Event "Titled Tuesday Blitz October 11 Early 2022"]
[White "Jovic, Stanoje"]
[Black "Hambleton, Aman"]
[WhiteFideId "905020"]
[BlackFideId "2606577"]
[WhiteElo "2238"]
[BlackElo "2538"]
[Result "0-1"]
[Round "03"]
[TimeControl "180+1"]
[Date "2022.10.12"]
[WhiteClock "0:00:03"]
[BlackClock "0:00:04"]

1. c4 {[%clk 0:03:00]}  e5 {[%clk 0:02:56]} 2. g3 {[%clk 0:03:01]}  c6 {[%clk 0:02:38]} 3. d4 {[%clk 0:03:00]}  Bb4+ {[%clk 0:02:24]} 4. Bd2 {[%clk 0:02:58]}  Bxd2+ {[%clk 0:02:16]} 5. Qxd2 {[%clk 0:02:58]}  d6 {[%clk 0:02:17]} 6. Nc3 {[%clk 0:02:53]}  Nf6 {[%clk 0:02:15]} 7. dxe5 {[%clk 0:02:47]}  dxe5 {[%clk 0:02:15]} 8. Qxd8+ {[%clk 0:02:47]}  Kxd8 {[%clk 0:02:16]} 9. O-O-O+ {[%clk 0:02:47]}  Ke7 {[%clk 0:01:55]} 10. h3 {[%clk 0:02:46]}  Be6 {[%clk 0:01:53]} 11. e4 {[%clk 0:02:34]}  Nfd7 {[%clk 0:01:44]} 12. f4 {[%clk 0:02:27]}  f6 {[%clk 0:01:44]} 13. Nf3 {[%clk 0:02:23]}  a5 {[%clk 0:01:43]} 14. f5 {[%clk 0:02:17]}  Bf7 {[%clk 0:01:43]} 15. g4 {[%clk 0:02:17]}  Na6 {[%clk 0:01:41]} 16. h4 {[%clk 0:02:15]}  Ndc5 {[%clk 0:01:14]} 17. Rh2 {[%clk 0:02:12]}  Rhd8 {[%clk 0:00:55]} 18. Rhd2 {[%clk 0:02:10]}  Rxd2 {[%clk 0:00:51]} 19. Rxd2 {[%clk 0:02:10]}  Nd7 {[%clk 0:00:25]} 20. Be2 {[%clk 0:02:04]}  Nac5 {[%clk 0:00:23]} 21. Kc2 {[%clk 0:01:58]}  a4 {[%clk 0:00:21]} 22. g5 {[%clk 0:01:44]}  Nb6 {[%clk 0:00:19]} 23. b3 {[%clk 0:01:36]}  axb3+ {[%clk 0:00:20]} 24. axb3 {[%clk 0:01:36]}  Ra3 {[%clk 0:00:21]} 25. b4 {[%clk 0:01:27]}  Rxc3+ {[%clk 0:00:21]} 26. Kxc3 {[%clk 0:01:26]}  Nxe4+ {[%clk 0:00:22]} 27. Kc2 {[%clk 0:01:15]}  Nxd2 {[%clk 0:00:12]} 28. Nxd2 {[%clk 0:01:14]}  Nc8 {[%clk 0:00:05]} 29. c5 {[%clk 0:01:10]}  Bd5 {[%clk 0:00:05]} 30. Kd3 {[%clk 0:01:01]}  Kf7 {[%clk 0:00:05]} 31. Ke3 {[%clk 0:01:01]}  Ne7 {[%clk 0:00:05]} 32. Bg4 {[%clk 0:00:55]}  fxg5 {[%clk 0:00:03]} 33. hxg5 {[%clk 0:00:54]}  h6 {[%clk 0:00:04]} 34. Bh5+ {[%clk 0:00:49]}  Kf8 {[%clk 0:00:02]} 35. f6 {[%clk 0:00:50]}  gxf6 {[%clk 0:00:02]} 36. gxf6 {[%clk 0:00:50]}  Ng8 {[%clk 0:00:03]} 37. Bg4 {[%clk 0:00:43]}  Nxf6 {[%clk 0:00:03]} 38. Bc8 {[%clk 0:00:43]}  Ke7 {[%clk 0:00:04]} 39. Bxb7 {[%clk 0:00:43]}  h5 {[%clk 0:00:04]} 40. Bc8 {[%clk 0:00:41]}  Be6 {[%clk 0:00:02]} 41. Ba6 {[%clk 0:00:40]}  h4 {[%clk 0:00:02]} 42. Nf3 {[%clk 0:00:37]}  Nd5+ {[%clk 0:00:02]} 43. Kf2 {[%clk 0:00:36]}  Nxb4 {[%clk 0:00:03]} 44. Bb7 {[%clk 0:00:28]}  Kf6 {[%clk 0:00:02]} 45. Nxh4 {[%clk 0:00:27]}  Nd3+ {[%clk 0:00:02]} 46. Ke3 {[%clk 0:00:26]}  Nb4 {[%clk 0:00:02]} 47. Nf3 {[%clk 0:00:24]}  Bd5 {[%clk 0:00:02]} 48. Nd2 {[%clk 0:00:23]}  Ke6 {[%clk 0:00:02]} 49. Bc8+ {[%clk 0:00:23]}  Kf6 {[%clk 0:00:02]} 50. Bb7 {[%clk 0:00:23]}  Nc2+ {[%clk 0:00:02]} 51. Kd3 {[%clk 0:00:22]}  Nd4 {[%clk 0:00:02]} 52. Ke3 {[%clk 0:00:20]}  Ne6 {[%clk 0:00:02]} 53. Ne4+ {[%clk 0:00:18]}  Ke7 {[%clk 0:00:02]} 54. Ba6 {[%clk 0:00:15]}  Kd7 {[%clk 0:00:02]} 55. Nf6+ {[%clk 0:00:14]}  Ke7 {[%clk 0:00:02]} 56. Ng4 {[%clk 0:00:13]}  e4 {[%clk 0:00:01]} 57. Ne5 {[%clk 0:00:11]}  Nxc5 {[%clk 0:00:02]} 58. Be2 {[%clk 0:00:10]}  Kd6 {[%clk 0:00:02]} 59. Ng6 {[%clk 0:00:10]}  Ne6 {[%clk 0:00:02]} 60. Nh4 {[%clk 0:00:09]}  Ke5 {[%clk 0:00:02]} 61. Ng6+ {[%clk 0:00:09]}  Kf6 {[%clk 0:00:02]} 62. Nh4 {[%clk 0:00:09]}  Ng7 {[%clk 0:00:02]} 63. Ng2 {[%clk 0:00:08]}  Ke5 {[%clk 0:00:02]} 64. Bg4 {[%clk 0:00:07]}  Ne8 {[%clk 0:00:03]} 65. Nf4 {[%clk 0:00:07]}  Nf6 {[%clk 0:00:03]} 66. Ng6+ {[%clk 0:00:07]}  Kd6 {[%clk 0:00:03]} 67. Bf5 {[%clk 0:00:07]}  c5 {[%clk 0:00:03]} 68. Nh4 {[%clk 0:00:06]}  Bb7 {[%clk 0:00:03]} 69. Bh7 {[%clk 0:00:06]}  Ke5 {[%clk 0:00:03]} 70. Nf5 {[%clk 0:00:07]}  Nd5+ {[%clk 0:00:02]} 71. Kd2 {[%clk 0:00:06]}  c4 {[%clk 0:00:03]} 72. Ng7 {[%clk 0:00:06]}  e3+ {[%clk 0:00:03]} 73. Ke1 {[%clk 0:00:06]}  Nf4 {[%clk 0:00:03]} 74. Bc2 {[%clk 0:00:05]}  Be4 {[%clk 0:00:02]} 75. Bd1 {[%clk 0:00:05]}  c3 {[%clk 0:00:02]} 76. Ne8 {[%clk 0:00:04]}  c2 {[%clk 0:00:02]} 77. Bxc2 {[%clk 0:00:05]}  Bxc2 {[%clk 0:00:03]} 78. Nc7 {[%clk 0:00:05]}  Bd3 {[%clk 0:00:04]} 79. Na8 {[%clk 0:00:03]}  Ng2+ {[%clk 0:00:04]} 0-1


[Site "https://www.chess.com"]

[Event "Titled Tuesday Blitz October 11 Early 2022"]
[White "Kaganskiy, Gleb"]
[Black "Sernecki, Franciszek"]
[WhiteFideId "4132025"]
[BlackFideId "1169297"]
[WhiteElo "2165"]
[BlackElo "2209"]
[Result "0-1"]
[Round "03"]
[TimeControl "180+1"]
[Date "2022.10.12"]
[WhiteClock "0:00:32"]
[BlackClock "0:01:58"]

1. e4 {[%clk 0:02:46]}  e6 {[%clk 0:02:58]} 2. d4 {[%clk 0:02:46]}  d5 {[%clk 0:02:59]} 3. Nd2 {[%clk 0:02:46]}  dxe4 {[%clk 0:02:58]} 4. Nxe4 {[%clk 0:02:46]}  Nd7 {[%clk 0:02:59]} 5. Nf3 {[%clk 0:02:43]}  Ngf6 {[%clk 0:03:00]} 6. Nxf6+ {[%clk 0:02:43]}  Nxf6 {[%clk 0:03:01]} 7. Bd3 {[%clk 0:02:43]}  Be7 {[%clk 0:03:01]} 8. O-O {[%clk 0:02:43]}  O-O {[%clk 0:03:01]} 9. c3 {[%clk 0:02:43]}  b6 {[%clk 0:03:02]} 10. Qe2 {[%clk 0:02:42]}  Bb7 {[%clk 0:03:02]} 11. Re1 {[%clk 0:02:42]}  c5 {[%clk 0:03:02]} 12. Bf4 {[%clk 0:02:38]}  Qd5 {[%clk 0:03:02]} 13. dxc5 {[%clk 0:02:36]}  bxc5 {[%clk 0:03:00]} 14. Rad1 {[%clk 0:02:36]}  Qh5 {[%clk 0:03:00]} 15. Ne5 {[%clk 0:02:31]}  Qxe2 {[%clk 0:02:58]} 16. Rxe2 {[%clk 0:02:32]}  Rfd8 {[%clk 0:02:57]} 17. Red2 {[%clk 0:02:30]}  h6 {[%clk 0:02:53]} 18. Bb5 {[%clk 0:02:22]}  Rxd2 {[%clk 0:02:51]} 19. Rxd2 {[%clk 0:02:22]}  Rd8 {[%clk 0:02:52]} 20. Rxd8+ {[%clk 0:02:21]}  Bxd8 {[%clk 0:02:53]} 21. Nc6 {[%clk 0:02:19]}  Bb6 {[%clk 0:02:51]} 22. Bb8 {[%clk 0:02:11]}  a6 {[%clk 0:02:50]} 23. Ba4 {[%clk 0:02:06]}  g5 {[%clk 0:02:38]} 24. c4 {[%clk 0:02:04]}  Ne4 {[%clk 0:02:36]} 25. Kf1 {[%clk 0:01:45]}  Nd2+ {[%clk 0:02:34]} 26. Ke1 {[%clk 0:01:46]}  Nxc4 {[%clk 0:02:34]} 27. b3 {[%clk 0:01:33]}  Nb2 {[%clk 0:02:28]} 28. Ne7+ {[%clk 0:01:19]}  Kf8 {[%clk 0:02:23]} 29. Bd6 {[%clk 0:01:19]}  Nxa4 {[%clk 0:02:20]} 30. bxa4 {[%clk 0:01:15]}  Ke8 {[%clk 0:02:19]} 31. Ng8 {[%clk 0:01:12]}  Bxg2 {[%clk 0:02:11]} 32. Nxh6 {[%clk 0:01:12]}  Bc6 {[%clk 0:02:11]} 33. a5 {[%clk 0:01:06]}  Bxa5+ {[%clk 0:02:09]} 34. Ke2 {[%clk 0:01:06]}  Bb6 {[%clk 0:02:08]} 35. Ng4 {[%clk 0:01:04]}  Kd7 {[%clk 0:02:08]} 36. Bf8 {[%clk 0:01:02]}  Bb5+ {[%clk 0:02:05]} 37. Kd2 {[%clk 0:01:01]}  f5 {[%clk 0:02:05]} 38. Ne5+ {[%clk 0:01:00]}  Ke8 {[%clk 0:02:05]} 39. Bh6 {[%clk 0:00:58]}  Bd8 {[%clk 0:02:04]} 40. Nd3 {[%clk 0:00:52]}  Bxd3 {[%clk 0:02:03]} 41. Kxd3 {[%clk 0:00:52]}  Kf7 {[%clk 0:02:03]} 42. f4 {[%clk 0:00:40]}  Kg6 {[%clk 0:01:59]} 43. Bf8 {[%clk 0:00:39]}  gxf4 {[%clk 0:01:57]} 44. Bxc5 {[%clk 0:00:39]}  e5 {[%clk 0:01:56]} 45. Bd6 {[%clk 0:00:37]}  e4+ {[%clk 0:01:56]} 46. Ke2 {[%clk 0:00:35]}  f3+ {[%clk 0:01:57]} 47. Kf1 {[%clk 0:00:32]}  Bb6 {[%clk 0:01:58]} 0-1


[Site "https://www.chess.com"]